bitfinex-derivatives/quotes_ETHF0:USTF0_20230104
["timestamp","ask_amount","ask_price","bid_price","bid_amount"]
[1672824178587,7.60067467,1251.4,1251.3,2.79129266]
[1672824180892,4.0073,1251.4,1251.3,4.57850003]
[1672824182267,1.0,1251.4,1251.3,4.57850003]
[1672824182474,4.0073,1251.4,1251.3,4.57850003]
[1672824185313,4.0073,1251.4,1251.3,2.79129266]
[1672824185516,7.60067467,1251.4,1251.3,2.79129266]
[1672824186255,5.5933,1251.4,1251.2,2.78129266]
[1672824186462,3.59517392,1251.3,1251.2,2.78129266]
[1672824187626,6.60247392,1251.3,1251.2,2.78129266]
[1672824188034,3.0073,1251.3,1251.2,4.56850003]
[1672824188465,6.00297256,1251.3,1251.2,3.37520737]
[1672824188675,3.0073,1251.3,1251.2,4.57030078]
[1672824189410,6.18117392,1251.4,1251.2,4.57030078]
[1672824189623,3.0073,1251.3,1251.2,4.57030078]
[1672824191107,3.0073,1251.3,1251.2,3.37520737]
[1672824191411,3.0073,1251.3,1251.2,4.57034304]
[1672824192043,6.00297085,1251.3,1251.2,3.37520737]
[1672824192976,6.00297085,1251.3,1251.2,5.76366406]
[1672824195826,6.00297085,1251.3,1251.2,3.37520737]
[1672824196457,2.99567085,1251.3,1251.2,3.37520737]
[1672824197821,2.99567085,1251.3,1251.2,5.76366406]
[1672824200660,2.99567085,1251.3,1251.2,3.37520737]
[1672824201186,2.99567085,1251.3,1251.2,5.76366406]
[1672824203180,2.99567085,1251.3,1251.2,5.76466406]
[1672824203495,2.99567085,1251.3,1251.2,3.37620737]
[1672824210977,7.60247392,1251.4,1251.2,3.37620737]
[1672824211179,7.60247392,1251.4,1251.3,1.19506475]
[1672824212237,6.60247392,1251.4,1251.3,1.19506475]
[1672824212657,3.0073,1251.4,1251.3,1.19506475]
[1672824212867,3.0073,1251.4,1251.3,2.98227212]
[1672824213178,3.0073,1251.4,1251.3,4.58327212]
[1672824213395,3.0073,1251.4,1251.3,2.79606475]
[1672824214548,12.37737619,1251.5,1251.3,2.79606475]
[1672824214864,3.0073,1251.4,1251.3,4.58327212]
[1672824215275,6.00295358,1251.4,1251.3,3.38820737]
[1672824215486,3.0073,1251.4,1251.3,3.38820737]
[1672824216334,6.00267366,1251.4,1251.3,3.38820737]
[1672824216658,6.00267366,1251.4,1251.3,4.58282027]
[1672824216875,3.0073,1251.4,1251.3,4.58282027]
[1672824217069,11.19647392,1251.5,1251.3,4.58282027]
[1672824221275,8.18917392,1251.5,1251.3,4.58282027]
[1672824221478,3.0073,1251.4,1251.3,4.58282027]
[1672824222640,3.59517392,1251.5,1251.3,4.57682027]
[1672824222852,2.39594564,1251.4,1251.3,5.39575669]
[1672824223161,1.796795,1251.4,1251.3,10.61387236]
[1672824225789,4.796795,1251.5,1251.3,10.61387236]
[1672824225994,4.796795,1251.5,1251.4,5.40206161]
[1672824226208,1.796795,1251.5,1251.4,5.40202697]
[1672824226519,1.796795,1251.5,1251.4,5.77356349]
[1672824227359,1.796795,1251.5,1251.4,3.3887968]
[1672824227574,1.796795,1251.5,1251.4,5.77356349]
[1672824228422,1.796795,1251.5,1251.4,3.3887968]
[1672824234505,1.796795,1251.5,1251.4,4.57985441]
[1672824237874,1.796795,1251.5,1251.4,2.79205761]
[1672824239139,8.58924105,1251.6,1251.4,2.78705761]
[1672824240295,1.79279019,1251.5,1251.4,2.78705761]
[1672824241872,8.58924105,1251.6,1251.4,2.78705761]
[1672824242287,2.99494105,1251.5,1251.4,1.596]
[1672824242705,2.99494105,1251.5,1251.3,1.601]
[1672824242706,1.596,1251.5,1251.3,1.601]
[1672824242918,5.99585289,1251.4,1251.3,1.601]
[1672824253223,5.99585289,1251.4,1251.3,1.598]
[1672824253440,8.38726866,1251.4,1251.3,1.598]
[1672824253651,5.99585289,1251.4,1251.3,1.598]
[1672824263209,5.99585289,1251.4,1251.3,1.593]
[1672824265625,12.6003,1251.4,1251.1,1.598]
[1672824265836,5.39833615,1251.2,1251.1,1.598]
[1672824267524,2.39103615,1251.2,1251.1,1.598]
[1672824267734,5.39833615,1251.2,1251.1,1.598]
[1672824269419,8.38713134,1251.2,1251.1,1.598]
[1672824269628,5.39833615,1251.2,1251.1,1.598]
[1672824269839,8.38713134,1251.2,1251.1,1.598]
[1672824271729,5.39833615,1251.2,1251.1,1.598]
[1672824271944,5.99609519,1251.2,1251.1,1.598]
[1672824273096,8.38733961,1251.2,1251.1,1.598]
[1672824273307,5.99609519,1251.2,1251.1,1.598]
[1672824275092,8.38793907,1251.2,1251.1,1.598]
[1672824275307,5.99609519,1251.2,1251.1,1.598]
[1672824279506,8.99609519,1251.2,1251.1,1.598]
[1672824279828,6.0073,1251.2,1251.1,1.598]
[1672824280031,6.0073,1251.2,1251.1,1.59427694]
[1672824282451,8.99885077,1251.2,1251.1,1.59427694]
[1672824283079,8.99885077,1251.2,1251.1,1.598]
[1672824285076,5.99155077,1251.2,1251.1,1.598]
[1672824285292,8.99885077,1251.2,1251.1,1.598]
[1672824285714,6.0073,1251.2,1251.1,1.598]
[1672824287287,8.99875095,1251.2,1251.1,1.598]
[1672824287708,6.0073,1251.2,1251.1,1.598]
[1672824289492,3.0,1251.2,1251.1,1.598]
[1672824289702,6.0073,1251.2,1251.1,1.598]
[1672824291182,3.0,1251.2,1251.1,1.598]
[1672824291393,6.0073,1251.2,1251.1,1.598]
[1672824295382,5.40069976,1251.2,1251.1,3.3767968]
[1672824295590,5.40069976,1251.2,1251.1,6.17213513]
[1672824295795,5.9990497,1251.2,1251.1,4.38433833]
[1672824296855,5.9990497,1251.2,1251.1,2.78333833]
[1672824299484,5.9990497,1251.2,1251.1,4.57113513]
[1672824301171,5.9990497,1251.2,1251.1,2.78333833]
[1672824303062,5.9990497,1251.2,1251.1,4.57113513]
[1672824303273,5.9990497,1251.2,1251.1,2.78333833]
[1672824303480,5.9990497,1251.2,1251.1,4.57113513]
[1672824303695,5.9990497,1251.2,1251.1,2.78333833]
[1672824303913,5.9990497,1251.2,1251.1,4.57113513]
[1672824304639,3.0073,1251.2,1251.1,4.57113513]
[1672824305592,6.0024607,1251.2,1251.1,4.57113513]
[1672824306958,2.9951607,1251.2,1251.1,4.57113513]
[1672824307163,6.0024607,1251.2,1251.1,4.57113513]
[1672824308532,3.0073,1251.2,1251.1,2.78333833]
[1672824310423,3.0073,1251.2,1251.1,4.57113513]
[1672824310635,3.0073,1251.2,1251.1,2.78333833]
[1672824310953,3.0073,1251.2,1251.1,4.57113513]
[1672824316416,3.0073,1251.2,1251.1,2.78333833]
[1672824317785,3.0073,1251.2,1251.1,4.57113513]
[1672824319245,6.00221215,1251.2,1251.1,4.57113513]
[1672824319458,3.0073,1251.2,1251.1,4.57113513]
[1672824319668,3.0073,1251.2,1251.1,2.78333833]
[1672824321987,3.0073,1251.2,1251.1,4.57113513]
[1672824322945,6.00222595,1251.2,1251.1,4.57113513]
[1672824323256,3.0073,1251.2,1251.1,4.57113513]
[1672824325041,4.09517392,1251.3,1251.1,4.57113513]
[1672824325251,3.0073,1251.2,1251.1,4.57113513]
[1672824325779,6.00219617,1251.2,1251.1,4.57113513]
[1672824326820,3.0073,1251.2,1251.1,4.57113513]
[1672824328406,4.09517392,1251.3,1251.1,4.57113513]
[1672824328616,3.0073,1251.2,1251.1,4.57113513]
[1672824329140,3.0073,1251.2,1251.1,2.78333833]
[1672824330718,6.60247392,1251.2,1251.1,2.78333833]
[1672824330929,3.0073,1251.2,1251.1,2.78333833]
[1672824331979,6.60247392,1251.2,1251.1,2.78333833]
[1672824334076,3.59517392,1251.2,1251.1,2.78333833]
[1672824334292,6.60247392,1251.2,1251.1,4.57113513]
[1672824335140,6.60247392,1251.2,1251.1,2.78333833]
[1672824335350,6.60247392,1251.2,1251.1,4.57113513]
[1672824335768,3.59517392,1251.2,1251.1,4.57113513]
[1672824336084,6.60247392,1251.2,1251.1,4.57113513]
[1672824337125,6.60247392,1251.2,1251.1,2.78333833]
[1672824339335,6.60247392,1251.2,1251.1,1.589]
[1672824339553,10.79067619,1251.2,1251.1,1.589]
[1672824339754,6.60247392,1251.2,1251.1,2.78333833]
[1672824340811,6.60247392,1251.2,1251.1,1.589]
[1672824341022,6.60247392,1251.2,1251.1,2.78333833]
[1672824342599,3.59517392,1251.2,1251.1,2.78333833]
[1672824342810,6.60247392,1251.2,1251.1,2.78333833]
[1672824343234,6.60247392,1251.2,1251.1,2.79233833]
[1672824343545,6.60247392,1251.2,1251.1,1.598]
[1672824343751,6.60247392,1251.2,1251.1,2.79233833]
[1672824344177,3.59517392,1251.2,1251.1,1.598]
[1672824344491,6.60247392,1251.2,1251.1,1.598]
[1672824344694,3.59517392,1251.2,1251.1,1.598]
[1672824344902,6.60247392,1251.2,1251.1,1.598]
[1672824345867,3.59517392,1251.2,1251.1,1.598]
[1672824346063,6.60247392,1251.2,1251.1,1.598]
[1672824347326,8.19847392,1251.2,1251.0,2.98213513]
[1672824347533,8.36969805,1251.1,1251.0,2.41927744]
[1672824347746,15.5654,1251.1,1250.8,2.99410446]
[1672824347955,3.0073,1250.9,1250.8,2.99410446]
[1672824348490,5.0073,1250.9,1250.8,1.19764178]
[1672824348692,8.00136685,1250.9,1250.8,1.19764178]
[1672824348903,5.0073,1250.9,1250.8,1.19764178]
[1672824349432,8.00137887,1250.9,1250.8,1.19764178]
[1672824349643,5.0073,1250.9,1250.8,1.19764178]
[1672824350271,5.0073,1250.9,1250.7,4.59210446]
[1672824350483,2.39401145,1250.8,1250.7,4.59210446]
[1672824351527,5.40131145,1250.8,1250.7,4.59210446]
[1672824352369,5.40131145,1250.8,1250.7,2.79564178]
[1672824356796,2.39401145,1250.8,1250.7,2.79564178]
[1672824357007,5.40131145,1250.8,1250.7,2.79564178]
[1672824357214,5.40131145,1250.8,1250.7,1.598]
[1672824362053,7.19458201,1250.8,1250.7,2.79564178]
[1672824362268,4.80057056,1250.8,1250.7,2.79564178]
[1672824362579,7.19458201,1250.8,1250.7,2.79564178]
[1672824362781,4.80057056,1250.8,1250.7,2.79564178]
[1672824363412,5.99594184,1250.8,1250.7,4.59210446]
[1672824363628,1.19537128,1250.8,1250.7,4.59210446]
[1672824364471,1.19537128,1250.8,1250.7,3.39446268]
[1672824364993,1.19537128,1250.8,1250.7,4.58893076]
[1672824365198,2.98864184,1250.8,1250.7,4.58893076]
[1672824368156,1.79327056,1250.8,1250.7,2.79246808]
[1672824368573,1.79327056,1250.8,1250.7,4.58893076]
[1672824369509,2.98907629,1250.8,1250.7,4.58944206]
[1672824369723,2.98907629,1250.8,1250.7,4.59244206]
[1672824370359,2.98907629,1250.8,1250.7,3.39746268]
[1672824372782,2.98907629,1250.8,1250.7,4.99046268]
[1672824374563,2.98907629,1250.8,1250.7,7.38212885]
[1672824375508,2.98907629,1250.8,1250.7,5.58928357]
[1672824375929,2.98907629,1250.8,1250.7,7.38234185]
[1672824376249,2.98907629,1250.8,1250.7,5.58928357]
[1672824376659,2.98907629,1250.8,1250.7,7.00628991]
[1672824377504,2.98907629,1250.8,1250.7,5.58928357]
[1672824377925,2.98907629,1250.8,1250.7,7.00628072]
[1672824378241,2.98907629,1250.8,1250.7,5.58928357]
[1672824378559,2.98907629,1250.8,1250.7,7.0062776]
[1672824380674,1.79327056,1250.8,1250.7,7.0062776]
[1672824381300,2.99031418,1250.8,1250.7,7.0062776]
[1672824381513,1.79327056,1250.8,1250.7,7.0062776]
[1672824381826,2.99030014,1250.8,1250.7,7.0062776]
[1672824382034,2.99030717,1250.8,1250.7,7.0062776]
[1672824382245,1.79327056,1250.8,1250.7,7.0062776]
[1672824383394,2.99052803,1250.8,1250.7,9.99332184]
[1672824383716,2.99052803,1250.8,1250.7,7.38389807]
[1672824383717,2.39401145,1250.8,1250.7,7.38389807]
[1672824384460,2.39401145,1250.8,1250.7,7.38430064]
[1672824384663,2.39401145,1250.8,1250.7,5.58928357]
[1672824385402,5.40131145,1250.8,1250.7,7.38435276]
[1672824386339,5.40131145,1250.8,1250.7,5.58928357]
[1672824387497,5.40131145,1250.8,1250.7,7.00636773]
[1672824387815,8.39382576,1250.8,1250.7,7.38486269]
[1672824389496,5.40131145,1250.8,1250.7,5.58928357]
[1672824389708,8.39382576,1250.8,1250.7,5.58928357]
[1672824390127,5.40131145,1250.8,1250.7,5.58928357]
[1672824390441,5.40131145,1250.8,1250.7,7.00638249]
[1672824390648,5.40131145,1250.8,1250.7,5.58928357]
[1672824392026,2.39401145,1250.8,1250.7,7.00633623]
[1672824392233,5.38652576,1250.8,1250.7,5.58928357]
[1672824392444,8.39382576,1250.8,1250.7,7.38508631]
[1672824392762,8.39382576,1250.8,1250.7,5.58928357]
[1672824392971,5.99981431,1250.8,1250.7,7.38509812]
[1672824393183,8.39626353,1250.8,1250.7,7.38509812]
[1672824393501,8.39626353,1250.8,1250.7,5.58928357]
[1672824393909,5.38896353,1250.8,1250.7,5.58928357]
[1672824394121,8.39626353,1250.8,1250.7,5.58928357]
[1672824394336,8.39625197,1250.8,1250.7,5.58928357]
[1672824394545,5.99981431,1250.8,1250.7,5.58928357]
[1672824394971,8.39646479,1250.8,1250.7,5.58928357]
[1672824395178,5.99981431,1250.8,1250.7,7.38527415]
[1672824395393,8.39645782,1250.8,1250.7,5.58928357]
[1672824396545,5.99981431,1250.8,1250.7,5.58928357]
[1672824396864,8.39666145,1250.8,1250.7,5.58928357]
[1672824397075,8.39666145,1250.8,1250.7,7.00637219]
[1672824398021,5.99981431,1250.8,1250.7,5.58928357]
[1672824398223,8.39666261,1250.8,1250.7,5.58928357]
[1672824398543,5.99981431,1250.8,1250.7,7.00639038]
[1672824399070,5.99981431,1250.8,1250.7,5.58928357]
[1672824399388,5.99981431,1250.8,1250.7,7.0063933]
[1672824400015,5.99981431,1250.8,1250.7,5.4133933]
[1672824401066,5.99981431,1250.8,1250.7,3.99628357]
[1672824405063,2.99251431,1250.8,1250.7,3.99628357]
[1672824405265,5.99981431,1250.8,1250.7,5.79212124]
[1672824406005,5.99981431,1250.8,1250.7,5.79177003]
[1672824406324,5.99981431,1250.8,1250.7,5.41338555]
[1672824406848,2.99251431,1250.8,1250.7,5.41338555]
[1672824407375,2.99251431,1250.8,1250.7,5.41338829]
[1672824407900,2.99251431,1250.8,1250.7,3.99628357]
[1672824408108,2.99251431,1250.8,1250.7,5.79189018]
[1672824408318,2.99251431,1250.8,1250.7,3.99628357]
[1672824408532,2.99251431,1250.8,1250.7,5.79189359]
[1672824409568,2.99251431,1250.8,1250.7,3.99628357]
[1672824409781,2.99251431,1250.8,1250.7,5.41338134]
[1672824409990,2.99251431,1250.8,1250.7,3.99628357]
[1672824411046,2.99251431,1250.8,1250.7,5.41338607]
[1672824411365,2.99251431,1250.8,1250.7,3.99628357]
[1672824411888,2.99251431,1250.8,1250.7,2.39528357]
[1672824412098,3.39373648,1250.8,1250.7,1.79578168]
[1672824412421,3.39373648,1250.8,1250.6,3.81226541]
[1672824412422,1.596,1250.8,1250.6,2.99357237]
[1672824412634,3.0073,1250.7,1250.6,2.99357237]
[1672824412844,6.00270392,1250.7,1250.6,1.19742895]
[1672824413045,6.00270392,1250.7,1250.6,1.79614342]
[1672824413476,6.00270392,1250.7,1250.6,2.9928607]
[1672824414420,6.00270392,1250.7,1250.6,1.79614342]
[1672824414630,6.00270392,1250.7,1250.6,2.99255024]
[1672824415366,6.00270392,1250.7,1250.6,1.79614342]
[1672824415577,6.00270392,1250.7,1250.6,2.99252042]
[1672824415787,2.99540392,1250.7,1250.6,2.99252042]
[1672824416729,2.99540392,1250.7,1250.6,4.58552042]
[1672824416937,2.39534595,1250.7,1250.6,4.9878579]
[1672824418624,2.39534595,1250.7,1250.6,6.40502243]
[1672824418834,4.19195312,1250.7,1250.6,6.40502243]
[1672824419255,2.39534595,1250.7,1250.6,4.9878579]
[1672824421243,2.39534595,1250.7,1250.6,6.40501655]
[1672824421452,2.39534595,1250.7,1250.6,4.9878579]
[1672824422507,2.39534595,1250.7,1250.6,6.40500646]
[1672824422826,4.19221086,1250.7,1250.6,6.40500646]
[1672824423027,2.39534595,1250.7,1250.6,6.40500646]
[1672824423238,2.39534595,1250.7,1250.6,6.40503317]
[1672824423776,1.79689549,1250.7,1250.6,9.39860554]
[1672824423984,4.19224144,1250.7,1250.6,9.39860554]
[1672824424513,4.19224144,1250.7,1250.6,6.40503317]
[1672824425458,4.18651865,1250.7,1250.6,6.40503317]
[1672824427250,2.39534595,1250.7,1250.6,6.40503317]
[1672824429980,2.39534595,1250.7,1250.6,6.40903317]
[1672824440694,2.39534595,1250.7,1250.6,5.40903317]
[1672824441848,5.39074987,1250.7,1250.6,3.9918579]
[1672824442376,2.39534595,1250.7,1250.6,3.9918579]
[1672824444478,2.39534595,1250.7,1250.6,5.40905418]
[1672824444896,2.39534595,1250.7,1250.6,3.9918579]
[1672824445422,5.39074987,1250.7,1250.6,3.9918579]
[1672824448895,5.39074987,1250.7,1250.6,5.78743249]
[1672824449101,5.39074987,1250.7,1250.6,3.9918579]
[1672824451934,2.39534595,1250.7,1250.6,5.4090547]
[1672824452357,5.39074987,1250.7,1250.6,3.9918579]
[1672824452779,2.99540392,1250.7,1250.6,5.40906804]
[1672824453619,2.99540392,1250.7,1250.6,3.9918579]
[1672824454151,2.99540392,1250.7,1250.6,5.78753742]
[1672824454353,2.99540392,1250.7,1250.6,5.78753989]
[1672824454675,2.99540392,1250.7,1250.6,3.9918579]
[1672824455411,2.99540392,1250.7,1250.6,5.7877805]
[1672824456144,2.99540392,1250.7,1250.6,4.1907805]
[1672824456351,2.99540392,1250.7,1250.6,1.7959226]
[1672824456777,2.99540392,1250.7,1250.6,4.1907805]
[1672824457301,2.99540392,1250.7,1250.6,1.7959226]
[1672824459189,8.18947392,1250.8,1250.6,2.99325308]
[1672824461082,2.99663516,1250.7,1250.6,2.99325308]
[1672824461918,6.00393516,1250.7,1250.6,2.99325308]
[1672824462760,2.99663516,1250.7,1250.6,2.99325308]
[1672824462975,6.00393516,1250.7,1250.6,1.7959226]
[1672824463492,2.99663516,1250.7,1250.6,1.7959226]
[1672824463699,6.00393516,1250.7,1250.6,1.7959226]
[1672824463919,2.99663516,1250.7,1250.6,1.7959226]
[1672824464128,6.00393516,1250.7,1250.6,1.7959226]
[1672824465071,6.00393516,1250.7,1250.6,2.99251828]
[1672824465603,6.00393516,1250.7,1250.6,1.7959226]
[1672824467596,6.00393516,1250.7,1250.6,5.7887805]
[1672824469496,6.00393516,1250.7,1250.6,3.3939226]
[1672824469808,2.99663516,1250.7,1250.6,5.7887805]
[1672824470126,2.99663516,1250.7,1250.6,3.3939226]
[1672824470333,2.99663516,1250.7,1250.6,5.7887805]
[1672824473386,2.99663516,1250.7,1250.6,3.9928579]
[1672824474115,2.99663516,1250.7,1250.6,5.78804983]
[1672824480538,2.99663516,1250.7,1250.6,3.39319193]
[1672824480743,8.19647392,1250.8,1250.6,3.39319193]
[1672824480956,8.19647392,1250.8,1250.7,1.19702849]
[1672824481268,8.19647392,1250.8,1250.7,2.19702849]
[1672824481481,8.19647392,1250.8,1250.7,1.19702849]
[1672824481795,5.18917392,1250.8,1250.7,1.19702849]
[1672824482008,8.19647392,1250.8,1250.7,1.19702849]
[1672824483374,5.18917392,1250.8,1250.7,1.19702849]
[1672824483907,8.19647392,1250.8,1250.7,1.19702849]
[1672824484117,5.18917392,1250.8,1250.7,1.19702849]
[1672824484329,8.19647392,1250.8,1250.7,1.19702849]
[1672824485056,5.18917392,1250.8,1250.7,1.19702849]
[1672824485268,8.19647392,1250.8,1250.7,1.19702849]
[1672824486638,5.18917392,1250.8,1250.7,1.19702849]
[1672824486850,8.19647392,1250.8,1250.7,1.19702849]
[1672824490309,8.19647392,1250.8,1250.7,2.99222042]
[1672824492101,4.6013,1250.8,1250.7,2.99222042]
[1672824492517,8.19647392,1250.8,1250.7,2.99222042]
[1672824493043,8.19447392,1250.8,1250.7,2.99222042]
[1672824494307,6.60247392,1250.8,1250.7,3.99222042]
[1672824494522,5.39548235,1250.8,1250.7,10.99149261]
[1672824494730,2.39797176,1250.8,1250.7,8.59663471]
[1672824494947,5.39548235,1250.8,1250.7,10.98986715]
[1672824495157,2.99751059,1250.8,1250.7,7.99629478]
[1672824495470,6.00481059,1250.8,1250.7,5.98044142]
[1672824495892,6.00481059,1250.8,1250.7,4.98044142]
[1672824498943,2.99751059,1250.8,1250.7,4.98044142]
[1672824499149,6.00481059,1250.8,1250.7,4.98044142]
[1672824499570,2.99751059,1250.8,1250.7,4.98044142]
[1672824499780,6.00481059,1250.8,1250.7,4.98044142]
[1672824502827,2.99751059,1250.8,1250.7,4.98044142]
[1672824503038,6.00481059,1250.8,1250.7,4.98044142]
[1672824503459,3.0073,1250.8,1250.7,4.38224802]
[1672824503881,6.60247392,1250.8,1250.7,3.186]
[1672824504093,6.60247392,1250.8,1250.7,4.38224802]
[1672824505031,6.60247392,1250.8,1250.7,1.593]
[1672824506192,3.0073,1250.8,1250.7,2.79324802]
[1672824506408,6.00325786,1250.8,1250.7,4.58768944]
[1672824506623,6.00325786,1250.8,1250.7,3.39144142]
[1672824507355,2.39169819,1250.8,1250.7,5.59123244]
[1672824507563,2.39169819,1250.8,1250.7,7.00831005]
[1672824507990,2.39169819,1250.8,1250.7,5.59123244]
[1672824508509,2.39169819,1250.8,1250.7,7.0083015]
[1672824508719,2.39169819,1250.8,1250.7,7.3845911]
[1672824508938,2.39169819,1250.8,1250.7,5.59123244]
[1672824509345,2.39169819,1250.8,1250.7,7.00828799]
[1672824509977,2.39169819,1250.8,1250.7,5.59123244]
[1672824511665,2.39169819,1250.8,1250.7,7.38412508]
[1672824511879,2.39169819,1250.8,1250.7,5.59123244]
[1672824512611,1.7964994,1250.8,1250.7,10.01557493]
[1672824514717,2.993863,1250.8,1250.7,10.01557493]
[1672824515129,2.99366693,1250.8,1250.7,10.01557493]
[1672824515448,1.7964994,1250.8,1250.7,10.01557493]
[1672824515761,2.99364553,1250.8,1250.7,10.01557493]
[1672824515970,1.7964994,1250.8,1250.7,10.01557493]
[1672824517234,1.7964994,1250.8,1250.7,8.59853244]
[1672824517665,1.7964994,1250.8,1250.7,10.01554704]
[1672824517974,1.7964994,1250.8,1250.7,10.01554971]
[1672824518183,1.7964994,1250.8,1250.7,8.59853244]
[1672824518717,1.7964994,1250.8,1250.7,10.01555023]
[1672824518916,1.7964994,1250.8,1250.7,8.59853244]
[1672824519341,1.7964994,1250.8,1250.7,10.01554074]
[1672824519756,2.99346891,1250.8,1250.7,10.01554074]
[1672824520604,2.99346071,1250.8,1250.7,10.01554074]
[1672824522702,2.99346071,1250.8,1250.7,10.01553255]
[1672824523441,2.99338835,1250.8,1250.7,8.59853244]
[1672824523654,2.99338835,1250.8,1250.7,10.01553858]
[1672824523858,2.99342583,1250.8,1250.7,10.01553921]
[1672824524174,2.99342583,1250.8,1250.7,11.01553921]
[1672824525439,2.99342583,1250.8,1250.7,14.00911158]
[1672824526483,2.99342583,1250.8,1250.7,8.00823921]
[1672824526699,2.99342583,1250.8,1250.7,11.01553921]
[1672824528587,2.99342583,1250.8,1250.7,13.00823921]
[1672824528803,1.19692643,1250.8,1250.7,16.00181158]
[1672824529016,2.99342583,1250.8,1250.7,13.00823921]
[1672824529211,1.19692643,1250.8,1250.7,16.00181158]
[1672824529426,2.99342583,1250.8,1250.7,16.00181158]
[1672824529949,1.19692643,1250.8,1250.7,15.20957914]
[1672824530162,2.99342583,1250.9,1250.7,15.20957914]
[1672824530373,2.99346561,1250.9,1250.8,5.40238479]
[1672824530582,1.7964994,1250.9,1250.8,5.40238479]
[1672824531217,1.7964994,1250.9,1250.8,8.40968479]
[1672824531634,2.99343606,1250.9,1250.8,8.40968479]
[1672824531841,1.7964994,1250.9,1250.8,8.40968479]
[1672824532261,1.7964994,1250.9,1250.8,8.40956561]
[1672824533421,1.7964994,1250.9,1250.8,5.40226561]
[1672824534680,1.7964994,1250.9,1250.8,3.98537802]
[1672824535093,1.7964994,1250.9,1250.8,5.40228402]
[1672824535311,2.99595786,1251.0,1250.8,3.38834371]
[1672824535526,2.99595786,1251.0,1250.9,3.192]
[1672824536473,2.99595786,1251.0,1250.9,4.38638392]
[1672824538365,5.38991272,1251.0,1250.9,4.38638392]
[1672824538576,2.99595786,1251.0,1250.9,4.38638392]
[1672824539101,2.39392601,1251.0,1250.9,6.17772763]
[1672824539312,5.38988387,1251.0,1250.9,6.17772763]
[1672824540790,2.39392601,1251.0,1250.9,6.17772763]
[1672824541633,2.39392601,1251.0,1250.9,6.17777288]
[1672824542157,2.39392601,1251.0,1250.9,4.98334371]
[1672824542474,2.39392601,1251.0,1250.9,4.97756492]
[1672824542895,1.7953878,1251.0,1250.9,7.36594294]
[1672824543101,1.7953878,1251.0,1250.9,7.36592109]
[1672824543315,4.18931381,1251.0,1250.9,7.36592109]
[1672824543528,2.39392601,1251.0,1250.9,7.36592109]
[1672824543944,4.18949294,1251.0,1250.9,7.36592109]
[1672824544152,4.18949294,1251.0,1250.9,5.57459923]
[1672824544368,1.79556693,1251.0,1250.9,6.99136426]
[1672824544684,1.79556693,1251.0,1250.9,5.57459923]
[1672824545514,4.18949294,1251.0,1250.9,6.9913798]
[1672824546469,1.79556693,1251.0,1250.9,6.9913798]
[1672824546673,4.18949294,1251.0,1250.9,6.9913798]
[1672824547416,2.39392601,1251.0,1250.9,5.57459923]
[1672824547941,4.1900268,1251.0,1250.9,6.99140565]
[1672824548466,4.1900268,1251.0,1250.9,5.57459923]
[1672824549102,2.39392601,1251.0,1250.9,7.36658246]
[1672824550989,2.39392601,1251.0,1250.9,4.97820444]
[1672824551727,2.39392601,1251.0,1250.9,7.36658246]
[1672824555717,2.39392601,1251.0,1250.9,6.99140202]
[1672824556130,2.39392601,1251.0,1250.9,5.57459923]
[1672824558027,2.39392601,1251.0,1250.9,7.36706371]
[1672824558236,2.39392601,1251.0,1250.9,5.57459923]
[1672824558444,2.39392601,1251.0,1250.9,7.36710759]
[1672824558984,2.39392601,1251.0,1250.9,5.57459923]
[1672824559194,2.39392601,1251.0,1250.9,7.36730707]
[1672824559925,5.38988387,1251.0,1250.9,4.97892905]
[1672824560127,5.38988387,1251.0,1250.9,7.36730707]
[1672824560549,5.38988387,1251.0,1250.9,4.97892905]
[1672824561608,2.99595786,1251.0,1250.9,4.97892905]
[1672824564248,2.99595786,1251.0,1250.9,7.36730707]
[1672824567505,2.99595786,1251.0,1250.9,5.57459923]
[1672824568029,2.99595786,1251.0,1250.9,7.36829309]
[1672824568766,2.99595786,1251.0,1250.9,5.57459923]
[1672824574871,2.99595786,1251.0,1250.9,6.99146407]
[1672824575503,5.39289041,1251.0,1250.9,6.99146407]
[1672824576554,2.99595786,1251.0,1250.9,6.99146407]
[1672824576756,5.39296251,1251.0,1250.9,6.99146407]
[1672824577501,2.99595786,1251.0,1250.9,6.99146407]
[1672824577816,5.39324468,1251.0,1250.9,6.99146407]
[1672824578866,2.39728682,1251.0,1250.9,9.98503644]
[1672824583064,5.39324468,1251.0,1250.9,6.99146407]
[1672824585903,2.99595786,1251.0,1250.9,6.99146407]
[1672824586953,2.99595786,1251.0,1250.9,6.99147702]
[1672824587788,2.99595786,1251.0,1250.9,5.57459923]
[1672824588003,2.99595786,1251.0,1250.9,7.36892253]
[1672824588323,2.99595786,1251.0,1250.9,5.57459923]
[1672824589578,6.60247392,1251.1,1250.9,4.98071283]
[1672824589793,6.60247392,1251.1,1251.0,4.58781722]
[1672824591153,3.0073,1251.1,1251.0,4.58781722]
[1672824592317,18.77537619,1251.2,1251.0,4.58781722]
[1672824592520,3.0073,1251.1,1251.0,4.58781722]
[1672824593367,6.60247392,1251.1,1251.0,4.58781722]
[1672824594413,3.0073,1251.1,1251.0,4.58781722]
[1672824595357,6.60247392,1251.1,1251.0,1.597]
[1672824596201,10.79067619,1251.1,1251.0,1.597]
[1672824596412,11.79067619,1251.1,1251.0,1.597]
[1672824596621,7.60247392,1251.1,1251.0,1.597]
[1672824597355,4.59517392,1251.1,1251.0,1.597]
[1672824597570,7.60247392,1251.1,1251.0,1.597]
[1672824599255,7.60247392,1251.1,1251.0,2.7933256]
[1672824600829,4.0073,1251.1,1251.0,2.7933256]
[1672824602619,4.0073,1251.1,1251.0,4.58781722]
[1672824602932,4.0073,1251.1,1251.0,2.7933256]
[1672824603146,4.0073,1251.1,1251.0,2.7913256]
[1672824603459,4.0073,1251.1,1251.0,4.58581722]
[1672824604934,4.0073,1251.1,1251.0,2.7913256]
[1672824605351,4.0073,1251.1,1251.0,4.58581722]
[1672824606390,4.0073,1251.1,1251.0,2.7913256]
[1672824606607,7.60247392,1251.1,1251.0,2.7913256]
[1672824607768,4.0073,1251.1,1251.0,2.7913256]
[1672824608084,4.0073,1251.1,1251.0,4.58581722]
[1672824609767,4.0073,1251.1,1251.0,2.7913256]
[1672824609975,4.0073,1251.1,1251.0,4.58581722]
[1672824611657,4.0073,1251.1,1251.0,2.7913256]
[1672824611974,4.0073,1251.1,1251.0,4.58581722]
[1672824612500,7.00316467,1251.1,1251.0,4.5850799]
[1672824612701,7.00316467,1251.1,1251.0,3.38949162]
[1672824613228,7.00316467,1251.1,1251.0,1.79449162]
[1672824613433,4.0073,1251.1,1251.0,2.99015955]
[1672824613863,4.0073,1251.1,1251.0,1.19566793]
[1672824614389,4.0073,1251.1,1251.0,2.99012948]
[1672824615861,4.0073,1251.1,1251.0,1.19563786]
[1672824617331,4.0073,1251.1,1251.0,2.99012948]